fUST/lending_fUST_20250524
["ID","MTS","AMOUNT","RATE_DAILY","PERIOD"]
[362194236,1748082639224,-215.46,0.00022739,3]
[362194237,1748082639233,-430.0,0.00022739,3]
[362194238,1748082639242,-384.64,0.00022739,3]
[362194239,1748082639251,-430.0,0.00022739,3]
[362194240,1748082639261,-430.0,0.00022739,3]
[362194241,1748082639270,-430.0,0.00022739,3]
[362194242,1748082639281,-514.21,0.00022739,3]
[362194243,1748082639291,-430.0,0.00022739,3]
[362194244,1748082639300,-430.0,0.00022739,3]
[362194245,1748082639310,-810.92,0.00022739,3]
[362194246,1748082639319,-456.6,0.00022739,3]
[362194247,1748082639328,-430.0,0.00022739,3]
[362194248,1748082639339,-358.5,0.00022739,3]
[362194249,1748082639348,-942.19,0.00022739,3]
[362194250,1748082639358,-310.2,0.00022739,3]
[362194251,1748082639366,-430.0,0.00022739,3]
[362194252,1748082639376,-430.0,0.00022739,3]
[362194253,1748082639385,-430.0,0.00022739,3]
[362194254,1748082639394,-608.82,0.00022739,3]
[362194255,1748082639404,-430.0,0.00022739,3]
[362194256,1748082639414,-443.09559877,0.000229,2]
[362194257,1748082639423,-500.0,0.00022973,2]
[362194258,1748082639432,-500.0,0.00022973,2]
[362194259,1748082639442,-500.0,0.00022998,2]
[362194260,1748082639450,-500.0,0.00022998,2]
[362194261,1748082639461,-500.0,0.00022998,2]
[362194262,1748082639470,-500.0,0.00022998,2]
[362194263,1748082639479,-567.10957993,0.00022998,2]
[362194264,1748082639488,-500.0,0.00022998,2]
[362194265,1748082639503,-500.0,0.00022998,2]
[362194266,1748082639512,-291.35408802,0.00022998,2]
[362194267,1748082639521,-500.0,0.00022998,2]
[362194268,1748082639531,-649.95152084,0.00022998,2]
[362194269,1748082639540,-500.0,0.00022998,2]
[362194270,1748082639550,-500.0,0.00022998,2]
[362194271,1748082639559,-500.0,0.00022998,2]
[362194272,1748082639568,-422.13027731,0.00023,3]
[362194273,1748082639577,-50000.0,0.00023,2]
[362194274,1748082639587,-50000.0,0.00023,2]
[362194275,1748082639595,-50000.0,0.00023,2]
[362194276,1748082639605,-50000.0,0.00023,2]
[362194277,1748082639614,-33526.64130832,0.00023,2]
[362194294,1748082646627,-430.0,0.00021917,3]
[362194295,1748082646636,-430.0,0.00021917,3]
[362194296,1748082646645,-430.0,0.00021917,3]
[362194297,1748082646655,-430.0,0.00021917,3]
[362194298,1748082646664,-430.0,0.00021917,3]
[362194299,1748082646672,-430.0,0.00022191,3]
[362194300,1748082646681,-315.02899805,0.00022191,3]
[362194301,1748082646691,-430.0,0.00022191,3]
[362194302,1748082646700,-430.0,0.00022465,3]
[362194303,1748082646709,-8406.57872849,0.00023,2]
[362194321,1748083458947,-160.306519,0.00013699,2]
[362194335,1748083661926,2477.87851664,0.00024658,120]
[362194339,1748083748940,1903.0,0.000246,120]
[362194341,1748083804774,5000.0,0.00024658,120]
[362194371,1748083832765,-298.6558789,0.00020661,2]
[362194373,1748083832775,-244.934881,0.00020808,2]
[362194375,1748083832785,-5049.0,0.00021,10]
[362194377,1748083832795,-222.1097438,0.00021026,2]
[362194379,1748083832805,-189.17961913,0.00021207,2]
[362194381,1748083832814,-1200.0,0.00021593,2]
[362194383,1748083832823,-1985.36515818,0.00021594,2]
[362194385,1748083832833,-300.0,0.00021811,2]
[362194387,1748083832844,-300.0,0.00021811,2]
[362194389,1748083832853,-300.0,0.00021812,2]
[362194391,1748083832863,-9475.11889799,0.00021816,2]
[362194393,1748083832873,-151.0,0.000219,4]
[362194395,1748083832882,-151.0,0.000219,3]
[362194397,1748083832892,-151.0,0.000219,4]
[362194398,1748083832902,-151.0,0.000219,4]
[362194400,1748083832911,-151.0,0.000219,3]
[362194402,1748083832921,-151.0,0.000219,4]
[362194404,1748083832930,-213.94695569,0.000219,6]
[362194406,1748083832940,-500.0,0.00021909,2]
[362194408,1748083832949,-500.0,0.00021909,2]
[362194410,1748083832959,-500.0,0.00021909,2]
[362194413,1748083832968,-500.0,0.00021909,2]
[362194415,1748083832978,-354.96606459,0.00021909,2]
[362194418,1748083832987,-500.0,0.00021909,2]
[362194421,1748083832996,-284.99093917,0.00021909,2]
[362194424,1748083833005,-603.94786161,0.00021909,2]
[362194427,1748083833015,-500.0,0.00021909,2]
[362194430,1748083833025,-500.0,0.00021909,2]
[362194433,1748083833035,-186.9218845,0.00021909,2]
[362194436,1748083833044,-500.0,0.00021909,2]
[362194439,1748083833054,-505.44326843,0.00021909,2]
[362194442,1748083833063,-1431.32496163,0.0002191,3]
[362194447,1748083833084,-935048.17473325,0.0002191,2]
[362194452,1748083833103,-1370.6710035,0.0002191,2]
[362194456,1748083833119,-21656.68936763,0.0002191,2]
[362194458,1748083833132,-767.73038522,0.0002191,2]
[362194460,1748083833147,-1211.35239175,0.0002191,2]
[362194723,1748083835885,5000.0,0.00024658,120]
[362194768,1748083838751,-240.0,0.00021909,2]
[362194769,1748083838761,-402.44682592,0.0002191,2]
[362194770,1748083838774,-627.60578722,0.0002191,2]
[362194771,1748083838786,-7602.56829612,0.0002191,2]
[362194772,1748083838808,-9422.33361633,0.0002191,2]
[362194775,1748083838871,-677.10053554,0.0002191,2]
[362194777,1748083838885,-20994.35790587,0.0002191,2]
[362194779,1748083838895,-155.313,0.00021916,2]
[362194781,1748083838915,-372.77988982,0.00021917,3]
[362194784,1748083838924,-400.0,0.00021917,3]
[362194786,1748083838934,-370.0,0.00021917,3]
[362194788,1748083838944,-420.0,0.00021917,3]
[362194789,1748083838953,-430.0,0.00021917,3]
[362194790,1748083838963,-430.0,0.00021917,3]
[362194791,1748083838974,-390.0,0.00021917,3]
[362194798,1748083839134,-430.0,0.00021917,3]
[362194799,1748083839145,-430.0,0.00021917,3]
[362194800,1748083839155,-500.0,0.00021917,2]
[362194801,1748083839164,-430.0,0.00021917,3]
[362194802,1748083839175,-430.0,0.00021917,3]
[362194803,1748083839184,-430.0,0.00021917,3]
[362194804,1748083839194,-331.50666071,0.00021917,3]
[362194805,1748083839203,-430.0,0.00021917,3]
[362194806,1748083839213,-430.0,0.00021917,3]
[362194807,1748083839223,-430.0,0.00021917,3]
[362194808,1748083839233,-430.0,0.00021917,3]
[362194809,1748083839243,-430.0,0.00021917,3]
[362194810,1748083839253,-370.0,0.00021917,3]
[362194811,1748083839263,-370.47497841,0.00021917,3]
[362194812,1748083839279,-430.0,0.00021917,3]
[362194813,1748083839289,-430.0,0.00021917,3]
[362194814,1748083839298,-500.0,0.00021917,2]
[362194815,1748083839308,-430.0,0.00021917,3]
[362194816,1748083839318,-532.69431911,0.00021917,3]
[362194817,1748083839328,-402.51243458,0.00021917,3]
[362194818,1748083839337,-364.46703473,0.00021917,3]
[362194819,1748083839348,-430.0,0.00021917,3]
[362194820,1748083839357,-430.0,0.00021917,3]
[362194821,1748083839366,-401.30912747,0.00021917,3]
[362194822,1748083839375,-430.0,0.00021917,3]
[362194823,1748083839386,-400.0,0.00021917,3]
[362194824,1748083839395,-450.57450537,0.00021917,3]
[362194825,1748083839405,-430.0,0.00021917,3]
[362194826,1748083839414,-430.0,0.00021917,3]
[362194827,1748083839423,-430.0,0.00021917,3]
[362194828,1748083839433,-430.0,0.00021917,3]
[362194829,1748083839442,-430.0,0.00021917,3]
[362194830,1748083839452,-430.0,0.00021917,3]
[362194831,1748083839462,-430.0,0.00021917,3]
[362194832,1748083839472,-430.0,0.00021917,3]
[362194833,1748083839484,-430.0,0.00021917,3]
[362194834,1748083839493,-450.0,0.00021917,3]
[362194835,1748083839503,-430.0,0.00021917,3]
[362194836,1748083839512,-430.0,0.00021917,3]
[362194837,1748083839522,-430.0,0.00021917,3]
[362194838,1748083839531,-430.0,0.00021917,3]
[362194839,1748083839541,-430.0,0.00021917,3]
[362194840,1748083839551,-430.0,0.00021917,3]
[362194841,1748083839561,-284.17375692,0.00021917,3]
[362194842,1748083839570,-430.0,0.00021917,3]
[362194843,1748083839579,-487.97,0.00021917,3]
[362194844,1748083839589,-430.0,0.00021917,3]
[362194845,1748083839599,-430.0,0.00021917,3]
[362194846,1748083839608,-430.0,0.00021917,3]
[362194847,1748083839618,-430.0,0.00021917,3]
[362194848,1748083839628,-430.0,0.00021917,3]
[362194849,1748083839640,-430.0,0.00021917,3]
[362194850,1748083839649,-430.0,0.00021917,3]
[362194851,1748083839659,-281.23456892,0.00021917,3]
[362194862,1748083840820,-148.76543108,0.00021917,3]
[362194863,1748083840830,-430.0,0.00021917,3]
[362194864,1748083840840,-430.0,0.00021917,3]
[362194865,1748083840849,-430.0,0.00021917,3]
[362194866,1748083840859,-430.0,0.00021917,3]
[362194867,1748083840868,-430.0,0.00021917,3]
[362194868,1748083840877,-430.0,0.00021917,3]
[362194869,1748083840888,-351.63122312,0.00021917,3]
[362194870,1748083840900,-78.36877688,0.00021917,3]
[362194872,1748083840910,-560.13500949,0.00021917,3]
[362194874,1748083840919,-430.0,0.00021917,3]
[362194877,1748083840929,-362.29621367,0.00021917,3]
[362194895,1748083843867,-57.70378633,0.00021917,3]
[362194896,1748083843877,-360.0,0.00021917,3]
[362194897,1748083843887,-430.0,0.00021917,3]
[362194898,1748083843896,-430.0,0.00021917,3]
[362194899,1748083843905,-430.0,0.00021917,3]
[362194900,1748083843915,-430.0,0.00021917,3]
[362194901,1748083843924,-430.0,0.00021917,3]
[362194902,1748083843934,-430.0,0.00021917,3]
[362194903,1748083843943,-430.0,0.00021917,3]
[362194904,1748083843954,-430.0,0.00021917,3]
[362194905,1748083843966,-430.0,0.00021917,3]
[362194906,1748083843976,-450.35,0.00021917,2]
[362194907,1748083843987,-430.0,0.00021917,3]
[362194908,1748083843997,-430.0,0.00021917,3]
[362194910,1748083844006,-430.0,0.00021917,3]
[362194912,1748083844016,-430.0,0.00021917,3]
[362194913,1748083844025,-430.0,0.00021917,3]
[362194914,1748083844035,-430.0,0.00021917,3]
[362194915,1748083844044,-430.0,0.00021917,3]
[362194916,1748083844054,-430.0,0.00021917,3]
[362194917,1748083844064,-430.0,0.00021917,3]
[362194918,1748083844074,-430.0,0.00021917,3]
[362194919,1748083844084,-430.0,0.00021917,3]
[362194920,1748083844093,-430.0,0.00021917,3]
[362194921,1748083844103,-361.18465459,0.00021917,3]
[362194922,1748083844112,-430.0,0.00021917,3]
[362194923,1748083844121,-430.0,0.00021917,3]
[362194924,1748083844130,-450.0,0.00021917,3]
[362194925,1748083844140,-450.0,0.00021917,3]
[362194926,1748083844149,-430.0,0.00021917,3]
[362194927,1748083844159,-420.07778004,0.00021917,3]
[362194928,1748083844168,-430.0,0.00021917,3]
[362194929,1748083844177,-430.0,0.00021917,3]
[362194930,1748083844186,-430.0,0.00021917,3]
[362194931,1748083844196,-430.0,0.00021917,3]
[362194932,1748083844207,-430.0,0.00021917,3]
[362194933,1748083844216,-430.0,0.00021917,3]
[362194934,1748083844226,-430.0,0.00021917,3]
[362194935,1748083844235,-822.36,0.00021917,3]
[362194936,1748083844246,-430.0,0.00021917,3]
[362194937,1748083844254,-450.0,0.00021917,3]
[362194938,1748083844264,-374.00225345,0.00021917,3]
[362194939,1748083844276,-151.0,0.00021917,2]
[362194940,1748083844286,-430.0,0.00021917,3]
[362194941,1748083844295,-430.0,0.00021917,3]
[362194942,1748083844304,-473.38420903,0.00021917,3]
[362194943,1748083844314,-430.0,0.00021917,3]
[362194944,1748083844324,-430.0,0.00021917,3]
[362194945,1748083844333,-452.78631879,0.00021917,3]
[362194946,1748083844343,-430.0,0.00021917,3]
[362194947,1748083844352,-430.0,0.00021917,3]
[362194948,1748083844362,-430.0,0.00021917,3]
[362194949,1748083844372,-430.0,0.00021917,3]
[362194950,1748083844383,-430.0,0.00021917,3]
[362194951,1748083844394,-419.33638042,0.00021917,3]
[362194952,1748083844403,-430.0,0.00021917,3]
[362194953,1748083844414,-430.0,0.00021917,3]
[362194954,1748083844423,-430.0,0.00021917,3]
[362194955,1748083844433,-430.0,0.00021917,3]
[362194956,1748083844442,-430.0,0.00021917,3]
[362194957,1748083844451,-430.0,0.00021917,3]
[362194958,1748083844461,-430.0,0.00021917,3]
[362194959,1748083844470,-430.0,0.00021917,3]
[362194960,1748083844480,-430.0,0.00021917,3]
[362194961,1748083844489,-430.0,0.00021917,3]
[362194962,1748083844499,-430.0,0.00021917,3]
[362194963,1748083844508,-430.0,0.00021917,3]
[362194964,1748083844517,-894.64583333,0.00021917,3]
[362194965,1748083844526,-430.0,0.00021917,3]
[362194966,1748083844536,-430.0,0.00021917,3]
[362194967,1748083844545,-430.0,0.00021917,3]
[362194968,1748083844555,-430.0,0.00021917,3]
[362194969,1748083844565,-430.0,0.00021917,3]
[362194970,1748083844575,-430.0,0.00021917,3]
[362194971,1748083844584,-430.0,0.00021917,3]
[362194972,1748083844594,-430.0,0.00021917,3]
[362194973,1748083844603,-430.0,0.00021917,3]
[362194974,1748083844613,-430.0,0.00021917,3]
[362194975,1748083844622,-430.0,0.00021917,3]
[362194976,1748083844632,-430.0,0.00021917,3]
[362194977,1748083844643,-1242.58,0.00021917,3]
[362194978,1748083844653,-430.0,0.00021917,3]
[362194979,1748083844662,-430.0,0.00021917,3]
[362194980,1748083844671,-430.0,0.00021917,3]
[362194981,1748083844681,-578.62394809,0.00021917,3]
[362194982,1748083844691,-237.40333078,0.00021917,3]
[362194983,1748083844700,-456.25993236,0.00021917,3]
[362194984,1748083844712,-430.0,0.00021917,3]
[362194985,1748083844722,-430.0,0.00021917,3]
[362194986,1748083844731,-430.0,0.00021917,3]
[362194987,1748083844741,-430.0,0.00021917,3]
[362194988,1748083844750,-430.0,0.00021917,3]
[362194989,1748083844759,-430.0,0.00021917,3]
[362194990,1748083844769,-430.0,0.00021917,3]
[362194991,1748083844779,-430.0,0.00021917,3]
[362194992,1748083844789,-430.0,0.00021917,3]
[362194993,1748083844799,-430.0,0.00021917,3]
[362194994,1748083844808,-430.0,0.00021917,3]
[362194995,1748083844818,-430.0,0.00021917,3]
[362194996,1748083844827,-400.0,0.00021917,3]
[362194997,1748083844837,-430.0,0.00021917,3]
[362194998,1748083844847,-430.0,0.00021917,3]
[362194999,1748083844856,-370.43095344,0.00021917,3]
[362195000,1748083844866,-430.0,0.00021917,3]
[362195001,1748083844875,-350.0,0.00021917,3]
[362195002,1748083844885,-420.0,0.00021917,3]
[362195003,1748083844895,-430.0,0.00021917,3]
[362195004,1748083844905,-2214.23,0.00021917,3]
[362195005,1748083844915,-430.0,0.00021917,3]
[362195006,1748083844924,-797.81,0.00021917,3]
[362195007,1748083844934,-430.0,0.00021917,3]
[362195008,1748083844944,-430.0,0.00021917,3]
[362195009,1748083844954,-430.0,0.00021917,3]
[362195010,1748083844963,-430.0,0.00021917,3]
[362195011,1748083844972,-430.0,0.00021917,3]
[362195012,1748083844981,-436.00544376,0.00021917,3]
[362195013,1748083844990,-430.0,0.00021917,3]
[362195014,1748083844999,-430.0,0.00021917,3]
[362195015,1748083845009,-430.0,0.00021917,3]
[362195016,1748083845018,-430.0,0.00021917,3]
[362195017,1748083845028,-420.0,0.00021917,3]
[362195018,1748083845038,-430.0,0.00021917,3]
[362195019,1748083845047,-430.0,0.00021917,3]
[362195020,1748083845056,-12649.97184255,0.00021917,3]
[362195021,1748083845066,-430.0,0.00021917,3]
[362195022,1748083845075,-430.0,0.00021917,3]
[362195023,1748083845184,-763.89,0.00021917,3]
[362195024,1748083845195,-430.0,0.00021917,3]
[362195025,1748083845205,-511.36743639,0.00021917,3]
[362195026,1748083845214,-430.0,0.00021917,3]
[362195027,1748083845223,-430.0,0.00021917,3]
[362195028,1748083845232,-430.0,0.00021917,3]
[362195029,1748083845242,-430.0,0.00021917,3]
[362195030,1748083845251,-430.0,0.00021917,3]
[362195031,1748083845261,-430.0,0.00021917,3]
[362195032,1748083845271,-430.0,0.00021917,3]
[362195033,1748083845282,-430.0,0.00021917,3]
[362195034,1748083845291,-430.0,0.00021917,3]
[362195035,1748083845300,-430.0,0.00021917,3]
[362195036,1748083845310,-430.0,0.00021917,3]
[362195037,1748083845320,-430.0,0.00021917,3]
[362195038,1748083845330,-430.0,0.00021917,3]
[362195039,1748083845339,-436.10316095,0.00021917,3]
[362195040,1748083845350,-285.79912523,0.00021917,3]
[362195041,1748083845360,-430.0,0.00021917,3]
[362195042,1748083845370,-430.0,0.00021917,3]
[362195043,1748083845379,-430.0,0.00021917,3]
[362195044,1748083845388,-1144.24,0.00021917,3]
[362195045,1748083845398,-430.0,0.00021917,3]
[362195046,1748083845407,-430.0,0.00021917,3]
[362195047,1748083845416,-420.0,0.00021917,3]
[362195048,1748083845426,-157.20591783,0.00021917,3]
[362195049,1748083845435,-593.79,0.00021917,3]
[362195050,1748083845445,-430.0,0.00021917,3]
[362195051,1748083845454,-1600.17,0.00021917,3]
[362195052,1748083845464,-430.0,0.00021917,3]
[362195053,1748083845473,-430.0,0.00021917,3]
[362195054,1748083845483,-232.95398784,0.00021917,3]
[362195055,1748083845493,-450.0,0.00021917,3]
[362195056,1748083845503,-430.0,0.00021917,3]
[362195057,1748083845513,-430.0,0.00021917,3]
[362195058,1748083845522,-430.0,0.00021917,3]
[362195059,1748083845532,-430.0,0.00021917,3]
[362195060,1748083845541,-430.0,0.00021917,3]
[362195061,1748083845551,-430.0,0.00021917,3]
[362195062,1748083845561,-430.0,0.00021917,3]
[362195063,1748083845570,-430.0,0.00021917,3]
[362195064,1748083845580,-450.0,0.00021917,3]
[362195065,1748083845590,-2973.8,0.00021917,3]
[362195066,1748083845600,-430.0,0.00021917,3]
[362195067,1748083845610,-301.11863513,0.00021917,3]
[362195068,1748083845620,-430.0,0.00021917,3]
[362195069,1748083845629,-391.9369699,0.00021917,3]
[362195070,1748083845638,-430.0,0.00021917,3]
[362195071,1748083845648,-430.0,0.00021917,3]
[362195072,1748083845657,-430.0,0.00021917,3]
[362195073,1748083845667,-430.0,0.00021917,3]
[362195074,1748083845677,-430.0,0.00021917,3]
[362195075,1748083845686,-430.0,0.00021917,3]
[362195076,1748083845695,-430.0,0.00021917,3]
[362195077,1748083845705,-430.0,0.00021917,3]
[362195078,1748083845715,-430.0,0.00021917,3]
[362195079,1748083845724,-430.0,0.00021917,3]
[362195080,1748083845733,-430.0,0.00021917,3]
[362195081,1748083845743,-430.0,0.00021917,3]
[362195082,1748083845752,-555.32693351,0.00021917,3]
[362195083,1748083845761,-430.0,0.00021917,3]
[362195084,1748083845770,-430.0,0.00021917,3]
[362195085,1748083845779,-430.0,0.00021917,3]
[362195086,1748083845789,-430.0,0.00021917,3]
[362195087,1748083845798,-430.0,0.00021917,3]
[362195088,1748083845808,-430.0,0.00021917,3]
[362195089,1748083845817,-430.0,0.00021917,3]
[362195090,1748083845826,-430.0,0.00021917,3]
[362195091,1748083845836,-430.0,0.00021917,3]
[362195092,1748083845845,-430.0,0.00021917,3]
[362195093,1748083845855,-342.95025982,0.00021917,3]
[362195094,1748083845864,-430.0,0.00021917,3]
[362195095,1748083845873,-400.0,0.00021917,3]
[362195096,1748083845883,-430.0,0.00021917,3]
[362195097,1748083845892,-430.0,0.00021917,3]
[362195098,1748083845902,-430.0,0.00021917,3]
[362195099,1748083845912,-406.22800147,0.00021917,3]
[362195100,1748083845922,-441.01,0.00021917,3]
[362195101,1748083845931,-259.45147679,0.00021917,3]
[362195102,1748083845941,-500.0,0.00021917,3]
[362195103,1748083845950,-430.0,0.00021917,3]
[362195104,1748083845960,-430.0,0.00021917,3]
[362195105,1748083845969,-430.0,0.00021917,3]
[362195106,1748083845979,-430.0,0.00021917,3]
[362195107,1748083845988,-430.0,0.00021917,3]
[362195108,1748083845998,-430.0,0.00021917,3]
[362195109,1748083846006,-430.0,0.00021917,3]
[362195110,1748083846016,-430.0,0.00021917,3]
[362195111,1748083846025,-430.0,0.00021917,3]
[362195112,1748083846034,-430.0,0.00021917,3]
[362195113,1748083846044,-1054.83,0.00021917,3]
[362195114,1748083846053,-430.0,0.00021917,3]
[362195115,1748083846063,-491.79572484,0.00021917,3]
[362195117,1748083846072,-430.0,0.00021917,3]
[362195118,1748083846082,-430.0,0.00021917,3]
[362195119,1748083846091,-430.0,0.00021917,3]
[362195120,1748083846100,-470.0,0.00021917,3]
[362195121,1748083846109,-775.94,0.00021917,3]
[362195122,1748083846118,-764.106095,0.00021917,2]
[362195124,1748083846127,-747.05,0.00021917,3]
[362195126,1748083846137,-764.106095,0.00021917,2]
[362195127,1748083846147,-430.0,0.00021917,3]
[362195128,1748083846157,-430.0,0.00021917,3]
[362195129,1748083846166,-764.106095,0.00021917,2]
[362195130,1748083846175,-430.0,0.00021917,3]
[362195132,1748083846185,-764.106095,0.00021917,2]
[362195133,1748083846194,-200.0,0.00021917,3]
[362195134,1748083846203,-430.0,0.00021917,3]
[362195135,1748083846212,-357.49351454,0.00021917,3]
[362195136,1748083846221,-430.0,0.00021917,3]
[362195137,1748083846230,-430.0,0.00021917,3]
[362195138,1748083846239,-430.0,0.00021917,3]
[362195139,1748083846249,-401.03096824,0.00021917,3]
[362195140,1748083846258,-430.0,0.00021917,3]
[362195141,1748083846268,-450.0,0.00021917,3]
[362195142,1748083846280,-430.0,0.00021917,3]
[362195143,1748083846290,-430.0,0.00021917,3]
[362195144,1748083846300,-430.0,0.00021917,3]
[362195145,1748083846309,-430.0,0.00021917,3]
[362195146,1748083846319,-446.32,0.00021917,3]
[362195147,1748083846328,-430.0,0.00021917,3]
[362195148,1748083846337,-430.0,0.00021917,3]
[362195149,1748083846347,-564.4,0.00021917,3]
[362195150,1748083846357,-2647.08,0.00021917,3]
[362195151,1748083846367,-430.0,0.00021917,3]
[362195152,1748083846376,-430.0,0.00021917,3]
[362195153,1748083846385,-909.44,0.00021917,3]
[362195154,1748083846395,-4241.56,0.00021917,2]
[362195155,1748083846405,-430.0,0.00021917,3]
[362195156,1748083846414,-430.0,0.00021917,3]
[362195157,1748083846423,-165.11577248,0.00021917,3]
[362195158,1748083846432,-430.0,0.00021917,3]
[362195159,1748083846441,-1506.07,0.00021917,3]
[362195160,1748083846450,-430.0,0.00021917,3]
[362195161,1748083846459,-430.0,0.00021917,3]
[362195162,1748083846469,-430.0,0.00021917,3]
[362195163,1748083846478,-320.0,0.00021917,3]
[362195164,1748083846487,-430.0,0.00021917,3]
[362195165,1748083846496,-430.0,0.00021917,3]
[362195166,1748083846505,-430.0,0.00021917,3]
[362195167,1748083846514,-430.0,0.00021917,3]
[362195168,1748083846523,-500.0,0.00021973,2]
[362195169,1748083846533,-505.80466812,0.00021973,2]
[362195170,1748083846542,-500.0,0.00021973,2]
[362195171,1748083846551,-500.0,0.00021973,2]
[362195172,1748083846561,-500.0,0.00021973,2]
[362195173,1748083846574,-500.28861401,0.00021973,2]
[362195174,1748083846584,-500.0,0.00021973,2]
[362195175,1748083846594,-500.0,0.00021973,2]
[362195176,1748083846603,-213.94695545,0.00022003,6]
[362195177,1748083846613,-160.0,0.00022047,2]
[362195178,1748083846622,-212.51988043,0.00022047,2]
[362195179,1748083846632,-160.0,0.00022047,2]
[362195180,1748083846641,-422.929492,0.00022052,2]
[362195181,1748083846650,-12649.97184255,0.00022052,2]
[362195182,1748083846660,-160.0,0.00022052,2]
[362195183,1748083846669,-213.94695545,0.00022107,6]
[362195184,1748083846679,-151.0,0.0002215,2]
[362195185,1748083846688,-500.0,0.00022177,2]
[362195186,1748083846698,-894.64583333,0.00022189,2]
[362195187,1748083846708,-160.0,0.00022189,2]
[362195188,1748083846717,-500.0,0.0002219,2]
[362195189,1748083846727,-495.31940556,0.00022191,3]
[362195191,1748083846737,-360.0,0.00022191,3]
[362195193,1748083846747,-340.0,0.00022191,3]
[362195194,1748083846757,-430.0,0.00022191,3]
[362195195,1748083846766,-430.0,0.00022191,3]
[362195197,1748083846775,-430.0,0.00022191,3]
[362195198,1748083846785,-430.0,0.00022191,3]
[362195199,1748083846794,-430.0,0.00022191,3]
[362195200,1748083846803,-430.0,0.00022191,3]
[362195201,1748083846813,-320.0,0.00022191,3]
[362195202,1748083846823,-430.0,0.00022191,3]
[362195203,1748083846832,-526.87970317,0.00022191,3]
[362195204,1748083846842,-367.55863267,0.00022191,3]
[362195205,1748083846852,-430.0,0.00022191,3]
[362195206,1748083846862,-370.0,0.00022191,3]
[362195207,1748083846872,-430.0,0.00022191,3]
[362195208,1748083846881,-430.0,0.00022191,3]
[362195209,1748083846890,-430.0,0.00022191,3]
[362195210,1748083846899,-430.0,0.00022191,3]
[362195211,1748083846909,-430.0,0.00022191,3]
[362195212,1748083846918,-430.0,0.00022191,3]
[362195213,1748083846927,-450.0,0.00022191,3]
[362195214,1748083846937,-165.20820215,0.00022191,3]
[362195215,1748083846947,-430.0,0.00022191,3]
[362195216,1748083846956,-430.0,0.00022191,3]
[362195217,1748083846966,-430.0,0.00022191,3]
[362195218,1748083846976,-541.27450594,0.00022191,3]
[362195219,1748083846986,-420.0,0.00022191,3]
[362195220,1748083846996,-430.0,0.00022191,3]
[362195221,1748083847006,-430.0,0.00022191,3]
[362195222,1748083847016,-430.0,0.00022191,3]
[362195223,1748083847026,-430.0,0.00022191,3]
[362195224,1748083847035,-450.0,0.00022191,3]
[362195225,1748083847045,-450.0,0.00022191,3]
[362195226,1748083847055,-430.0,0.00022191,3]
[362195227,1748083847064,-430.0,0.00022191,3]
[362195228,1748083847074,-430.0,0.00022191,3]